bitfinex-derivatives/quotes_BNBF0:USTF0_20250425
["timestamp","ask_amount","ask_price","bid_price","bid_amount"]
[1745542562775,1.26749408,602.5,600.55,4.325]
[1745542562968,1.26749408,602.44,600.55,4.325]
[1745542563876,1.26749408,602.44,600.56,0.3055893]
[1745542565078,1.26749408,602.44,600.55,4.325]
[1745542565274,1.26749408,602.23,600.56,0.30558885]
[1745542567478,1.26749408,602.21,600.56,0.30558885]
[1745542567879,1.26749408,602.21,600.56,1.28258885]
[1745542568082,1.26749408,602.21,600.57,0.30558885]
[1745542570182,1.26749408,602.21,600.58,1.092]
[1745542570382,1.26749408,602.11,600.59,0.30558885]
[1745542571282,1.26749408,602.11,600.58,1.092]
[1745542571581,1.26749408,602.11,600.59,0.3055893]
[1745542572282,1.26749408,602.09,600.59,0.3055893]
[1745542572883,1.26749408,602.09,600.58,1.092]
[1745542573082,1.26749408,602.09,600.59,0.30558903]
[1745542574482,1.26749408,602.09,600.58,1.092]
[1745542574682,1.26749408,602.09,600.59,0.30558714]
[1745542575179,1.26749408,602.01,600.59,0.30558714]
[1745542576083,1.26749408,602.01,600.58,1.092]
[1745542576283,1.26749408,602.01,600.59,0.30558714]
[1745542577583,1.26749408,602.1,600.58,1.092]
[1745542577883,1.26749408,602.1,600.59,0.30558674]
[1745542579183,1.26749408,602.1,600.58,1.092]
[1745542579383,1.26749408,602.1,600.59,0.30557934]
[1745542579879,1.26749408,602.0,600.61,1.0564898]
[1745542580092,1.26749408,602.0,600.62,0.30557934]
[1745542580884,1.26749408,602.0,600.63,0.30557307]
[1745542581078,1.26749408,602.0,600.62,0.30557307]
[1745542581284,1.26749408,602.0,600.63,0.30557307]
[1745542581484,1.26749408,602.0,600.61,1.0564898]
[1745542581485,1.26749408,602.0,600.62,0.30557307]
[1745542582385,1.26749408,602.0,600.61,1.0564898]
[1745542582581,1.26749408,602.0,600.62,0.30556836]
[1745542584281,1.26749408,602.11,600.62,0.30556836]
[1745542584485,1.26749408,602.11,600.63,1.218]
[1745542584686,1.26749408,602.11,600.64,0.30556836]
[1745542585586,1.26749408,602.11,600.63,1.218]
[1745542586087,1.26749408,602.11,600.64,1.381]
[1745542586788,0.28948135,602.17,600.64,1.381]
[1745542589391,1.26749408,602.34,600.64,1.381]
[1745542589690,0.28945366,602.17,600.64,1.381]
[1745542589891,1.26749408,602.34,600.64,1.381]
[1745542591091,1.26749408,602.34,600.65,1.084]
[1745542591390,1.26749408,602.36,600.65,1.084]
[1745542591590,0.28945245,602.33,600.65,1.084]
[1745542592390,1.26749408,602.36,600.65,1.084]
[1745542593692,1.26749408,602.4,600.65,1.084]
[1745542595089,0.28944523,602.39,600.65,1.084]
[1745542595393,0.27795762,602.39,600.65,1.084]
[1745542596995,0.27795762,602.39,600.65,2.153]
[1745542598395,1.26749408,602.63,600.65,2.153]
[1745542598793,0.28941755,602.38,600.65,2.153]
[1745542598993,1.26749408,602.63,600.65,2.153]
[1745542599197,1.26749408,602.58,600.65,2.153]
[1745542599690,0.28942356,602.57,600.65,2.153]
[1745542601495,1.26749408,602.54,600.65,2.153]
[1745542603497,1.26749408,602.54,600.66,0.30557729]
[1745542604693,0.28942838,602.53,600.66,0.30557729]
[1745542604993,0.28942838,602.53,600.65,2.153]
[1745542605195,0.28942838,602.53,600.66,0.30557735]
[1745542605698,0.28942838,602.53,600.65,2.153]
[1745542607401,1.26749408,602.54,600.65,2.153]
[1745542607700,0.28941634,602.52,600.65,2.153]
[1745542607903,1.26749408,602.11,600.65,2.153]
[1745542610105,1.26749408,602.11,600.66,0.30551062]
[1745542610999,2.15313798,602.24,600.66,0.30551062]
[1745542611000,0.28941634,602.52,600.66,0.30551062]
[1745542613407,1.26749408,602.74,600.66,0.30551062]
[1745542613808,1.26749408,602.27,600.66,0.30551062]
[1745542615007,1.26749408,602.27,600.65,1.069]
[1745542615204,1.26749408,602.27,600.66,0.30550916]
[1745542616109,1.26749408,602.41,600.66,0.30550916]
[1745542616707,1.26749408,602.41,600.66,1.69350916]
[1745542616908,1.26749408,602.41,600.67,0.30550916]
[1745542618807,1.26749408,602.26,600.67,0.30550916]
[1745542620009,1.26749408,602.26,600.66,1.388]
[1745542620209,1.26749408,602.26,600.67,0.30551096]
[1745542620910,1.26749408,602.26,600.67,1.86451096]
[1745542621205,1.26749408,602.26,600.68,0.30551096]
[1745542621610,0.28943199,602.29,600.68,0.30551096]
[1745542621611,1.26749408,602.22,600.68,0.30551096]
[1745542623707,0.2894356,602.29,600.68,0.30551096]
[1745542625409,1.26749408,602.35,600.68,0.30551096]
[1745542625714,0.28941995,602.29,600.68,0.30551096]
[1745542626014,0.28941995,602.29,600.67,1.559]
[1745542626215,0.28941995,602.29,600.68,0.30549723]
[1745542627714,0.28941995,602.29,600.67,1.559]
[1745542627914,0.28941995,602.29,600.68,0.30549245]
[1745542628414,1.26749408,602.38,600.68,0.30549245]
[1745542628814,0.28941634,602.29,600.68,0.30549245]
[1745542629010,1.26749408,602.38,600.68,0.30549245]
[1745542629314,1.26749408,602.38,600.67,1.559]
[1745542629515,1.26749408,602.38,600.68,0.30549048]
[1745542629815,2.15313798,603.0,600.68,0.30549048]
[1745542629816,0.28941634,602.37,600.68,0.30549048]
[1745542631016,0.28941634,602.37,600.67,1.559]
[1745542631215,0.28941634,602.37,600.68,0.30549985]
[1745542631414,1.26749408,602.49,600.68,0.30549985]
[1745542632619,0.28940311,602.48,600.68,0.30549985]
[1745542634421,1.26749408,602.53,600.68,0.30549985]
[1745542634720,0.28937904,602.47,600.68,0.30549985]
[1745542635422,0.28937904,602.47,600.67,1.559]
[1745542635619,0.28937904,602.47,600.68,0.30540183]
[1745542637623,1.26749408,602.63,600.68,0.30540183]
[1745542638123,1.26749408,603.28,600.68,0.30540183]
[1745542638723,0.28924796,603.27,600.68,0.30540183]
[1745542640318,0.28924796,603.27,600.68,1.46440183]
[1745542640522,1.26749408,603.28,600.69,0.30537846]
[1745542641219,1.26749408,603.31,600.69,0.30537846]
[1745542641724,0.28924315,603.3,600.69,0.30537846]
[1745542643426,1.26749408,603.31,600.69,0.30537846]
[1745542643726,0.28924315,603.29,600.69,0.30537846]
[1745542645122,1.26749408,602.94,600.69,0.30537846]
[1745542646830,0.28928763,602.93,600.69,0.30537846]
[1745542647131,0.28928763,602.93,600.68,1.159]
[1745542647327,0.28928763,602.93,600.69,0.30537844]
[1745542647528,1.26749408,602.65,600.69,0.30537844]
[1745542649835,0.28931529,602.64,600.69,0.30537844]
[1745542652440,1.26749408,602.77,600.69,0.30537844]
[1745542652635,1.26749408,602.77,600.55,0.30537844]
[1745542652839,1.26749408,602.77,600.56,0.30537844]
[1745542653034,1.26749408,602.77,600.57,0.30537844]
[1745542653237,1.26749408,602.8,600.58,0.30537844]
[1745542653437,1.26749408,602.8,600.59,0.30537844]
[1745542653740,0.28931408,602.79,600.6,0.30537844]
[1745542653940,0.28931408,602.79,600.61,0.30537844]
[1745542654240,0.28931408,602.79,600.62,0.30537844]
[1745542654437,0.28931408,602.79,600.6,0.30537844]
[1745542654636,0.28931408,602.79,600.59,0.28931408]
[1745542654637,0.28931408,602.79,600.61,0.30537844]
[1745542654836,0.28931408,602.79,600.62,0.30537844]
[1745542655040,0.28931408,602.79,600.63,0.30537844]
[1745542655241,0.28931408,602.79,600.6,0.30537844]
[1745542655442,1.26749408,602.8,600.61,0.30537844]
[1745542655744,1.26749408,602.8,600.62,0.30537844]
[1745542655942,1.26749408,602.8,600.63,0.30537844]
[1745542656142,1.26749408,602.8,600.55,0.30537844]
[1745542656338,1.26749408,602.8,600.56,0.30537844]
[1745542656543,1.26749408,602.8,600.55,0.30537844]
[1745542656743,0.28931408,602.79,600.57,0.28931408]
[1745542656941,0.28931408,602.79,600.58,0.30536617]
[1745542658443,1.26749408,602.8,600.58,0.30536617]
[1745542658647,1.26749408,602.8,600.55,0.30536617]
[1745542658943,0.28931048,602.78,600.57,0.28931048]
[1745542659147,0.28931048,602.78,600.58,0.30536617]
[1745542659347,0.28931048,602.78,600.59,0.30536617]
[1745542659547,0.28931048,602.78,600.6,0.30536617]
[1745542659846,0.28931048,602.78,600.61,0.30536617]
[1745542660040,0.28931048,602.78,600.57,0.28931048]
[1745542660346,0.28931048,602.78,600.58,0.30536644]
[1745542661442,1.26749408,602.82,600.58,0.30536644]
[1745542661648,1.26749408,602.82,600.55,0.30536644]
[1745542661846,0.28931168,602.81,600.57,0.28931168]
[1745542662145,1.26749408,602.79,600.58,0.30536644]
[1745542664751,1.26749408,602.85,600.56,1.0564898]
[1745542664949,0.28931168,602.78,600.57,0.59467399]
[1745542665149,0.28931168,602.78,600.58,0.30536231]
[1745542667453,1.26749408,602.85,600.58,0.30536231]
[1745542667652,1.26749408,602.85,600.57,0.30536231]
[1745542667949,1.26749408,602.85,600.56,1.0564898]
[1745542668157,1.26749408,602.85,600.34,1.035]
[1745542668158,1.26749408,602.93,600.66,1.0564898]
[1745542668349,1.26749408,602.93,600.67,0.30535384]
[1745542668754,0.28928402,602.92,600.67,0.30535384]
[1745542670455,1.26749408,602.93,600.67,0.30535384]
[1745542670855,1.26749408,602.82,600.81,1.0564898]
[1745542671154,1.26749408,602.82,600.82,0.30531248]
[1745542671749,0.28925998,602.81,600.82,0.30531248]
[1745542672750,0.28925998,602.81,600.81,1.0564898]
[1745542672955,0.28925998,602.81,600.82,0.30532955]
[1745542673152,1.26749408,602.77,600.93,1.0564898]
[1745542673355,1.26749408,602.77,600.94,0.30532955]
[1745542673850,0.28926358,602.76,600.94,0.30532955]
[1745542674252,0.28926358,602.76,600.93,1.0564898]
[1745542674457,0.28926358,602.76,600.94,0.30535188]
[1745542675759,1.26749408,602.5,600.94,0.30535188]
[1745542675955,1.26749408,602.5,600.95,0.30536675]
[1745542676155,1.26749408,602.5,600.96,0.30536675]
[1745542676357,1.26749408,602.5,600.97,0.30536675]
[1745542676556,1.26749408,602.5,600.84,0.30536675]
[1745542676757,1.26749408,602.5,600.85,0.30536675]
[1745542676957,1.26749408,602.5,600.84,0.30536675]
[1745542678462,0.2893201,602.52,600.84,0.30536675]
[1745542678859,0.2893201,602.52,600.73,0.30536675]
[1745542679059,0.2893201,602.52,600.72,2.5954898]
[1745542679263,0.2893201,602.52,600.73,0.30536997]
[1745542679464,1.26749408,602.67,600.73,0.30536997]
[1745542680766,0.28931408,602.66,600.73,0.30536997]
[1745542681368,1.26749408,602.63,600.73,0.30536997]
[1745542681665,1.26749408,602.63,600.72,1.539]
[1745542681867,1.26749408,602.63,600.73,0.30538124]
[1745542683673,0.28931769,602.62,600.73,0.30538124]
[1745542683973,0.28931769,602.62,600.79,1.0564898]
[1745542684171,0.28931769,602.62,600.8,0.30538124]
[1745542685266,0.28931769,602.62,600.8,1.36187104]
[1745542685467,1.26749408,602.73,600.81,0.30538124]
[1745542686474,1.26749408,602.73,600.8,1.0564898]
[1745542686772,0.28929605,602.72,600.81,0.30536816]
[1745542687974,1.26749408,602.43,600.96,1.0564898]
[1745542688270,1.26749408,602.43,600.97,0.30537522]
[1745542696080,1.26749408,602.43,600.96,1.0564898]
[1745542699682,0.28933213,602.44,600.8,0.984]
[1745542700481,1.26749408,603.08,600.8,0.984]
[1745542701678,0.2892732,603.07,600.8,0.984]
[1745542702682,0.2892732,603.07,600.8,2.063]
[1745542709487,1.26749408,603.08,600.8,2.063]
[1745542710787,0.28924435,603.07,600.8,2.063]
[1745542712089,0.28924435,603.07,600.81,0.30536049]
[1745542712488,1.26749408,603.43,600.81,0.30536049]
[1745542713687,1.26749408,602.98,600.82,0.30527972]
[1745542713885,1.26749408,602.98,600.81,0.30527972]
[1745542715986,1.26749408,602.98,600.81,1.87627972]
[1745542716189,1.26749408,602.98,600.82,0.30527972]
[1745542716394,1.26749408,603.16,600.82,0.30527972]
[1745542716791,0.28920228,602.97,600.82,0.30527972]
[1745542716996,1.26749408,603.16,600.82,0.30527972]
[1745542717295,0.28918065,602.96,600.82,0.30527972]
[1745542717495,1.26749408,603.16,600.82,0.30527972]
[1745542717797,0.28918065,602.95,600.82,0.30527972]
[1745542717997,1.26749408,603.16,600.82,0.30527972]
[1745542718297,0.28918065,602.94,600.82,0.30527972]
[1745542718494,0.28918065,602.94,600.83,0.30524592]
[1745542718694,1.26749408,603.16,600.82,0.30524592]
[1745542719399,1.26749408,603.0,600.82,0.30524592]
[1745542721698,1.26749408,603.0,600.83,0.30524592]
[1745542721898,1.26749408,603.0,600.84,0.30524592]
[1745542722098,1.26749408,603.0,600.85,0.30524592]
[1745542722295,1.26749408,603.0,600.86,0.30524592]
[1745542722499,1.26749408,603.07,600.82,0.30524592]
[1745542722794,0.28919988,602.99,600.83,0.30524592]
[1745542723003,1.26749408,603.07,600.84,0.30524592]
[1745542723201,1.26749408,603.07,600.85,0.30524592]
[1745542723397,1.26749408,603.07,600.86,0.30524592]
[1745542723598,1.26749408,603.07,600.87,0.30524592]
[1745542723799,1.26749408,603.07,600.88,0.30524592]
[1745542724104,1.26749408,603.07,600.89,0.30524592]
[1745542724302,0.28919147,603.06,600.9,0.30524592]
[1745542724506,0.28919147,603.06,600.82,0.30524592]
[1745542724705,0.28919147,603.06,600.84,0.28919147]
[1745542724905,0.28919147,603.06,600.85,0.30524226]
[1745542725108,1.26749408,602.96,600.85,0.30524226]
[1745542726001,1.26749408,602.96,600.86,1.487]
[1745542726206,1.26749408,602.96,600.87,0.30524226]
[1745542727802,1.26749408,603.4,600.87,0.30524226]
[1745542728811,0.28914582,603.39,600.87,0.30524226]
[1745542729607,0.28914582,603.39,600.86,1.487]
[1745542729809,0.28914582,603.39,600.87,0.30525617]
[1745542730107,1.26749408,603.2,600.87,0.30525617]
[1745542730806,0.28916984,603.19,600.87,0.30525617]
[1745542731206,0.28916984,603.19,600.86,1.77616984]
[1745542731407,0.28916984,603.19,600.87,0.3052456]
[1745542733008,0.28916984,603.19,600.88,0.3052491]
[1745542733206,0.28916984,603.19,600.87,0.3052491]
[1745542733403,0.28916984,603.19,600.88,0.3052491]
[1745542733607,1.26749408,603.52,600.87,0.3052491]
[1745542734809,0.2891314,603.51,600.87,0.3052491]
[1745542735005,1.26749408,603.38,600.87,0.3052491]
[1745542736808,0.28914822,603.37,600.87,0.3052491]
[1745542737612,1.26749408,603.29,600.87,0.3052491]
[1745542738608,1.26749408,603.29,600.88,0.3052491]
[1745542738811,1.26749408,603.29,600.87,0.3052491]
[1745542739011,1.26749408,603.29,600.88,0.3052491]
[1745542739208,1.26749408,603.29,600.88,1.049]
[1745542739414,1.26749408,603.29,600.89,0.3052491]
[1745542739708,0.28916864,603.28,600.89,0.3052491]
[1745542740413,1.26749408,603.02,600.89,0.3052491]
[1745542740815,1.26749408,603.02,600.9,1.149]
[1745542741016,1.26749408,603.02,600.91,0.3052491]
[1745542743516,2.15313798,603.7,600.91,0.3052491]
[1745542743517,1.26749408,602.99,600.91,0.3052491]
[1745542744315,1.26749408,602.99,600.91,1.3202491]
[1745542744520,1.26749408,602.99,600.92,0.3052491]
[1745542744919,1.26749408,602.99,600.91,1.015]
[1745542745715,0.2892107,602.98,600.91,1.015]
[1745542747221,0.2892107,602.98,600.92,0.30529008]
[1745542747522,0.2892107,602.98,600.91,1.015]
[1745542748526,1.26749408,603.45,600.91,1.015]
[1745542748723,0.28915543,602.97,600.91,1.015]
[1745542749025,1.26749408,603.45,600.91,1.015]
[1745542749330,1.26749408,603.32,600.91,1.015]
[1745542749829,0.28917104,603.31,600.91,1.015]
[1745542750028,0.28917104,603.31,600.92,0.30524973]
[1745542751535,1.26749408,603.32,600.92,0.30524973]
[1745542751835,0.28916383,603.3,600.92,0.30524973]
[1745542753730,1.26749408,603.0,600.92,0.30524973]
[1745542754838,0.28920589,602.99,600.92,0.30524973]
[1745542755037,0.28920589,602.99,600.93,0.30527865]
[1745542755231,0.28920589,602.99,600.92,0.30527865]
[1745542755436,0.28920589,602.99,600.93,0.30527865]
[1745542755740,1.55669997,602.99,600.94,0.30527865]
[1745542755934,1.55669997,602.99,600.92,0.30527865]
[1745542756138,1.55669997,602.99,600.93,0.30527865]
[1745542756338,1.55669997,602.99,600.94,0.30527865]
[1745542756538,1.55669997,602.99,600.92,0.30527865]
[1745542756739,1.55669997,602.99,600.93,0.30527865]
[1745542756941,1.55669997,602.99,600.92,0.30527865]
[1745542757442,1.26749408,602.99,600.92,0.30527865]
[1745542757741,0.2892107,602.98,600.92,0.30527865]
[1745542758141,0.2892107,602.98,600.91,1.015]
[1745542758343,0.2892107,602.98,600.92,0.30529372]
[1745542758642,1.26749408,602.92,600.92,0.30529372]
[1745542760741,1.26749408,602.87,600.92,0.30529372]
[1745542761446,1.26749408,602.87,600.91,1.015]
[1745542761745,0.28922512,602.86,600.92,0.3052909]
[1745542763050,0.28922512,602.86,600.91,1.015]
[1745542763247,0.28922512,602.86,600.92,0.30528758]
[1745542763447,1.26749408,602.87,600.92,0.30528758]
[1745542763741,1.26749408,602.8,600.92,0.30528758]
[1745542764646,1.26749408,602.8,600.91,1.015]
[1745542764845,0.28923353,602.79,600.92,0.30528928]
[1745542767650,1.26749408,602.59,600.94,1.0564898]
[1745542767842,1.26749408,602.59,600.95,0.30528928]
[1745542769648,1.26749408,602.59,600.96,1.0564898]
[1745542769848,1.26749408,602.59,600.97,0.30528928]
[1745542771156,1.26749408,602.59,600.96,1.0564898]
[1745542771356,1.26749408,602.59,600.97,0.30531327]
[1745542772259,1.26749408,602.76,600.97,1.36180307]
[1745542772459,1.26749408,602.76,600.98,0.30531327]
[1745542773857,0.28924074,602.75,600.98,0.30531327]
[1745542774862,0.28924074,602.75,600.92,0.30531327]
[1745542775461,1.26749408,602.89,600.92,0.30531327]
[1745542775660,1.26749408,602.89,600.9,0.30531327]
[1745542775861,0.28923233,602.74,600.9,0.30531327]
[1745542776061,1.26749408,602.89,600.9,0.30531327]
[1745542776766,0.28923473,602.88,600.9,0.30531327]
[1745542777370,0.28923473,602.88,600.89,1.0564898]
[1745542777665,0.28923473,602.88,600.9,0.30532466]
[1745542778467,1.26749408,602.89,600.9,0.30532466]
[1745542778767,0.28923473,602.87,600.9,0.30532466]
[1745542779869,0.28923473,602.87,600.84,0.30532466]
[1745542780868,0.28923473,602.87,600.83,1.0564898]
[1745542781067,0.28923473,602.87,600.84,0.30533041]
[1745542781572,2.15313798,603.72,600.84,0.30533041]
[1745542781573,1.26749408,602.95,600.84,0.30533041]
[1745542782776,1.26749408,602.95,600.85,1.178]
[1745542782967,0.28923473,602.94,600.86,0.30533041]
[1745542783572,0.28923473,602.94,600.85,1.178]
[1745542783773,0.28923473,602.94,600.86,0.30531715]
[1745542784079,0.28923473,602.94,600.85,1.178]
[1745542784274,0.28923473,602.94,600.86,0.30531898]
[1745542784578,1.26749408,603.3,600.86,0.30531898]
[1745542784769,0.28923233,602.93,600.86,0.30531898]
[1745542784974,1.26749408,603.3,600.86,0.30531898]
[1745542785875,0.28919027,603.29,600.86,0.30531898]
[1745542787380,0.28919027,603.29,600.85,1.178]
[1745542787579,1.26749408,603.24,600.86,0.30532597]
[1745542788379,1.26749408,603.24,600.87,1.404]
[1745542788585,1.26749408,603.24,600.88,0.30532597]
[1745542790681,1.26749408,603.19,600.88,0.30532597]
[1745542791782,0.28920108,603.18,600.88,0.30532597]
[1745542792182,0.28920108,603.18,600.87,1.404]
[1745542792487,0.28920108,603.18,600.88,0.30531693]
[1745542793180,1.26749408,602.95,600.88,0.30531693]
[1745542793881,0.28922993,602.94,600.87,1.404]
[1745542794086,0.28922993,602.94,600.88,0.30531817]
[1745542795487,0.28922993,602.94,600.87,1.404]
[1745542795687,0.28922993,602.94,600.88,0.30531692]
[1745542796487,1.26749408,602.96,600.88,0.30531692]
[1745542797090,1.26749408,602.96,600.87,1.404]
[1745542797389,1.26749408,602.96,600.88,0.30531477]
[1745542797786,0.28922872,602.95,600.88,0.30531477]
[1745542798393,1.26749408,602.71,600.88,0.30531477]
[1745542798784,1.26749408,602.71,600.87,2.4604898]
[1745542798989,1.26749408,602.71,600.88,0.30531504]
[1745542799790,0.28925877,602.7,600.88,0.30531504]
[1745542801586,0.28925877,602.7,600.89,0.30531427]
[1745542801792,0.28925877,602.7,600.9,0.30531427]
[1745542801987,0.28925877,602.7,600.88,0.30531427]
[1745542802493,1.26749408,602.78,600.88,0.30531427]
[1745542802999,1.26749408,602.58,600.96,1.0564898]
[1745542803198,1.26749408,602.58,600.97,0.30531427]
[1745542805695,1.26749408,602.9,600.97,0.30531427]
[1745542805896,1.26749408,602.9,600.98,0.3052604]
[1745542806092,1.26749408,602.9,600.99,0.3052604]
[1745542806293,1.26749408,602.9,600.94,0.3052604]
[1745542806595,1.26749408,602.9,600.95,0.3052604]
[1745542806801,0.28918786,602.89,600.94,0.3052604]
[1745542807096,0.28918786,602.89,600.95,0.3052604]
[1745542807295,0.28918786,602.89,600.94,0.3052604]
[1745542807494,0.28918786,602.89,600.95,0.3052604]
[1745542807795,0.28918786,602.89,600.96,1.7682604]
[1745542807996,0.28918786,602.89,600.97,0.3052604]
[1745542808497,1.26749408,602.9,600.97,0.3052604]
[1745542808899,1.26749408,602.99,600.97,0.3052604]
[1745542809598,1.26749408,602.99,600.96,1.463]
[1745542809793,0.28917345,602.98,600.97,0.30524183]
[1745542811198,0.28917345,602.98,600.96,1.463]
[1745542811398,0.28917345,602.98,600.97,0.30523705]
[1745542811595,1.26749408,602.99,600.97,0.30523705]
[1745542811799,0.28917345,602.97,600.97,0.30523705]
[1745542811999,0.28917345,602.97,600.98,1.0564898]
[1745542812194,0.28917345,602.97,600.99,0.30523705]
[1745542812795,0.28917345,602.97,600.98,1.0564898]
[1745542813001,0.28917345,602.97,600.99,0.30522511]
[1745542813401,0.28917345,602.97,601.0,1.559]
[1745542813600,0.28917345,602.97,601.01,0.30522511]
[1745542814400,0.28917345,602.97,601.0,1.559]
[1745542814606,1.26749408,603.14,601.01,0.30522146]
[1745542815506,1.26749408,603.07,601.03,1.0564898]
[1745542815699,1.26749408,603.07,601.04,0.30522146]
[1745542817703,1.26749408,603.07,601.03,1.0564898]
[1745542817907,0.28915062,603.06,601.04,0.30521593]
[1745542819104,1.26749408,603.05,601.05,1.0564898]
[1745542819605,1.26749408,603.05,601.06,0.30520419]
[1745542822206,0.28915062,603.06,601.06,0.30520419]
[1745542822411,0.28915062,603.06,601.01,0.30520419]
[1745542822701,0.28915062,603.06,601.02,0.30525065]
[1745542823005,0.28915062,603.06,601.03,0.30525065]
[1745542823205,0.28915062,603.06,601.04,0.30525065]
[1745542823406,0.28915062,603.06,601.01,0.30525065]
[1745542823607,1.26749408,603.16,601.02,0.30525065]
[1745542823807,1.26749408,603.16,601.03,0.30525065]
[1745542824007,1.26749408,603.16,601.01,0.30525065]
[1745542824208,1.26749408,603.16,601.02,0.30526277]
[1745542824509,2.15313798,603.8,601.0,2.6154898]
[1745542824510,1.26749408,603.09,601.03,0.30526277]
[1745542824707,1.26749408,603.09,601.01,0.30526277]
[1745542824904,1.26749408,603.09,601.04,0.30526277]
[1745542825103,1.26749408,603.09,601.05,0.30526277]
[1745542825304,1.26749408,603.09,601.01,0.30526277]
[1745542825503,1.26749408,603.09,601.02,0.30526277]
[1745542825708,1.26749408,603.09,601.03,0.30526277]
[1745542825903,1.26749408,603.09,601.01,0.30526277]
[1745542826110,1.26749408,603.09,601.02,0.30526277]
[1745542826408,1.26749408,603.09,601.03,0.30526277]
[1745542826614,1.26749408,603.09,601.0,1.559]
[1745542826615,1.26749408,603.14,601.01,0.30526277]
[1745542826803,1.26749408,603.14,601.02,0.30526277]
[1745542827005,1.26749408,603.14,601.03,0.30526277]
[1745542827207,1.26749408,603.14,601.01,0.30526277]
[1745542827404,1.26749408,603.14,601.0,1.559]
[1745542827616,1.26749408,603.14,601.01,0.30528363]
[1745542827809,0.28918426,603.13,601.01,0.30528363]
[1745542828912,0.28918426,603.13,601.0,1.559]
[1745542829108,0.28918426,603.13,601.01,0.30525597]
[1745542829511,1.26749408,603.14,601.01,0.30525597]
[1745542829708,0.28916504,603.12,601.01,0.30525597]
[1745542829907,1.55665912,603.12,601.01,0.30525597]
[1745542832014,1.55665912,603.12,601.0,1.559]
[1745542832314,1.55665912,603.12,601.01,0.30520415]
[1745542833115,1.55665912,603.12,601.02,0.30520415]
[1745542833415,1.55665912,603.12,601.03,0.30520415]
[1745542833614,0.28916504,603.12,601.04,0.30520415]
[1745542833814,0.28916504,603.12,601.01,0.30520415]
[1745542834013,0.28916504,603.12,601.02,0.30520415]
[1745542834215,0.28916504,603.12,601.03,0.30520415]
[1745542834415,0.28916504,603.12,601.04,0.30520415]
[1745542834610,0.28916504,603.12,601.0,1.559]
[1745542834611,0.28916504,603.12,601.01,0.30520415]
[1745542834816,0.28916504,603.12,601.02,0.30520415]
[1745542835013,0.28916504,603.12,601.03,0.30520415]
[1745542835215,0.28916504,603.12,601.04,0.30520415]
[1745542835418,0.28916504,603.12,601.01,0.30520415]
[1745542835615,0.28916504,603.12,601.02,0.30520415]
[1745542835816,0.28916504,603.12,601.01,0.30520415]
[1745542836013,0.28916504,603.12,601.02,0.30520415]
[1745542836210,0.28916504,603.12,601.01,0.30520415]
[1745542836410,1.26749408,602.96,601.16,1.0564898]
[1745542836616,1.26749408,602.96,601.17,0.30520415]
[1745542837218,1.26749408,602.96,601.16,1.0564898]
[1745542837516,1.26749408,602.96,601.17,0.30515361]
[1745542838718,1.26749408,603.68,601.17,0.30515361]
[1745542838918,1.26749408,603.68,601.01,0.30515361]
[1745542839614,1.26749408,603.68,601.02,0.30515361]
[1745542839814,0.28905215,603.67,600.94,0.30515361]
[1745542840015,0.28905215,603.67,600.95,0.30515361]
[1745542840218,0.28905215,603.67,600.96,0.30515361]
[1745542840414,0.28905215,603.67,600.94,0.30515361]
[1745542840618,0.28905215,603.67,600.95,0.30515361]
[1745542840818,0.28905215,603.67,600.91,1.34554195]
[1745542840819,0.28905215,603.67,600.96,0.30515361]
[1745542841121,1.26749408,603.64,600.97,1.36164341]
[1745542841419,1.26749408,603.64,600.98,0.30515361]
[1745542841820,0.28906055,603.63,600.97,1.0564898]
[1745542842016,0.28906055,603.63,600.98,0.30511784]
[1745542842422,0.28906055,603.63,600.99,1.577]
[1745542842621,0.28906055,603.63,601.0,0.30511784]
[1745542843616,0.28906055,603.63,601.01,0.3051065]
[1745542843821,0.28906055,603.63,601.02,0.3051065]
[1745542844021,0.28906055,603.63,601.0,0.3051065]
[1745542844222,0.28906055,603.63,601.01,0.3051065]
[1745542844418,0.28906055,603.63,601.0,0.3051065]
[1745542844723,1.26749408,603.68,601.0,0.3051065]
[1745542844923,0.28903895,603.62,601.0,0.3051065]
[1745542846128,0.28903895,603.62,601.01,1.359]
[1745542846329,0.28903895,603.62,601.02,0.3051065]
[1745542847528,1.26749408,603.74,601.02,0.3051065]
[1745542848726,0.28902934,603.73,601.02,0.3051065]
[1745542848936,1.26749408,603.54,601.05,1.0564898]
[1745542849129,1.26749408,603.54,601.06,0.3051065]
[1745542851735,0.28907496,603.53,601.06,0.3051065]
[1745542852131,0.28907496,603.53,601.03,0.3051065]
[1745542852332,0.28907496,603.53,601.04,0.3051065]
[1745542852537,0.28907496,603.53,601.03,0.3051065]
[1745542852733,0.28907496,603.53,601.04,0.3051065]
[1745542852935,0.28907496,603.53,601.03,0.3051065]
[1745542853132,0.28907496,603.53,601.04,0.3051065]
[1745542853431,0.28907496,603.53,601.05,0.3051065]
[1745542853635,0.28907496,603.53,601.03,0.3051065]
[1745542855437,1.26749408,603.35,601.03,0.3051065]